bitfinex/quotes_ETHUSD_20250430
["timestamp","ask_amount","ask_price","bid_price","bid_amount"]
[1746018840707,11.77639097,1764.9,1764.8,0.4145004]
[1746018840910,11.22639097,1764.9,1764.8,0.4145004]
[1746018841071,3.55,1764.8,1764.7,2.0]
[1746018841409,4.555063,1764.8,1764.7,2.0]
[1746018841606,0.55,1764.7,1763.7,2.0]
[1746018841808,6.24888051,1764.0,1763.8,0.12841982]
[1746018842065,10.854,1763.9,1763.8,0.12841982]
[1746018842222,6.80465004,1763.9,1763.8,0.12841982]
[1746018842386,3.80465004,1763.9,1763.7,2.0]
[1746018842588,1.2521,1763.9,1763.8,0.12841982]
[1746018842803,1.2521,1764.6,1763.8,0.12841982]
[1746018842986,1.2521,1766.0,1764.4,1.5983]
[1746018843190,1.2521,1766.0,1764.7,6.24888051]
[1746018843479,1.2521,1766.0,1764.8,0.12419995]
[1746018843480,1.2521,1765.7,1764.8,0.12419995]
[1746018843708,1.2521,1765.5,1764.8,0.12419995]
[1746018843911,1.67456269,1765.5,1764.3,5.48]
[1746018844071,1.67456269,1765.5,1764.9,0.12841982]
[1746018844072,0.80218984,1765.4,1764.9,0.12841982]
[1746018844276,0.80224765,1765.4,1764.9,5.48]
[1746018844479,0.80224765,1765.4,1765.0,0.00409146]
[1746018844875,2.55581211,1765.3,1764.3,7.1458]
[1746018845116,2.55581211,1765.3,1765.1,0.00402726]
[1746018845411,2.55581211,1765.3,1765.2,0.00396307]
[1746018845612,2.55581211,1765.3,1764.8,5.48]
[1746018845613,2.05434765,1765.3,1764.8,5.48]
[1746018845848,0.6,1765.2,1764.9,0.00415566]
[1746018846141,0.6,1765.2,1765.0,1.6029]
[1746018846439,0.6,1765.2,1765.0,1.60699146]
[1746018846811,0.6,1765.2,1765.0,0.00409146]
[1746018847542,0.6,1765.2,1764.7,3.49864144]
[1746018847729,0.6,1765.2,1765.1,0.00402726]
[1746018847914,0.6,1765.2,1764.5,5.701]
[1746018848124,0.6,1765.2,1765.1,0.00402726]
[1746018848342,1.40268287,1765.2,1764.3,4.38745191]
[1746018848648,1.40268287,1765.2,1764.5,6.24888051]
[1746018848951,7.50098051,1765.1,1764.6,0.00434832]
[1746018849132,3.0,1765.0,1764.6,0.00434832]
[1746018849311,1.2521,1764.9,1764.0,2.80402162]
[1746018849510,1.2521,1764.9,1764.0,0.85050216]
[1746018849511,0.50149837,1764.8,1764.0,0.85050216]
[1746018849736,0.5015011,1764.7,1764.1,0.11076562]
[1746018849932,1.2521,1764.6,1764.1,0.11076562]
[1746018850164,0.5015011,1764.7,1764.1,0.11076562]
[1746018850566,1.8521,1765.2,1764.4,0.55]
[1746018850751,0.6,1765.2,1764.6,6.24888051]
[1746018851047,0.6,1765.2,1764.9,6.24888051]
[1746018851254,0.6,1765.2,1764.7,5.25698805]
[1746018851589,0.6,1765.2,1764.9,6.24888051]
[1746018851887,0.6,1765.2,1765.0,11.94988051]
[1746018852188,0.6,1765.2,1765.1,2.1385]
[1746018852481,1.2521,1766.0,1765.1,3.54733805]
[1746018852650,0.50260238,1765.9,1765.1,1.5885]
[1746018852849,0.50260238,1765.9,1765.2,5.701]
[1746018853069,0.30155346,1765.8,1765.2,5.701]
[1746018853248,0.30155346,1765.8,1765.3,0.00389889]
[1746018853676,0.30155346,1765.8,1765.5,6.24888051]
[1746018853875,0.30155346,1765.8,1765.3,8.3912794]
[1746018854076,0.30155346,1765.8,1765.6,0.00370638]
[1746018854247,1.2521,1766.4,1765.3,8.38738051]
[1746018854581,0.2,1766.0,1765.4,0.11076561]
[1746018854756,4.2521,1765.8,1765.4,0.11076561]
[1746018855088,4.2521,1765.8,1764.5,1.5885]
[1746018855089,1.2521,1765.7,1764.5,1.5885]
[1746018855245,4.7553092,1765.6,1764.5,8.5497368]
[1746018855641,4.7553092,1765.6,1764.5,14.79861731]
[1746018855850,0.50329266,1765.5,1764.5,2.5887368]
[1746018856065,0.50329266,1765.5,1764.6,5.961]
[1746018856396,0.80513257,1765.4,1764.7,5.961]
[1746018856535,0.50329266,1765.3,1764.7,12.20988051]
[1746018856971,0.50329266,1765.3,1764.8,0.55]
[1746018857179,0.30192337,1765.2,1764.9,1.5757]
[1746018857544,0.30192337,1765.2,1765.0,6.24888051]
[1746018857749,0.30192337,1765.2,1765.1,0.62488805]
[1746018857959,5.961,1766.6,1765.3,1.5757]
[1746018858165,1.2521,1766.5,1765.4,12.20988051]
[1746018858582,1.01174037,1766.4,1765.4,12.20988051]
[1746018858990,0.50586317,1766.3,1765.5,5.961]
[1746018859172,1.2521,1766.2,1765.5,5.961]
[1746018859369,0.5058772,1766.1,1765.5,5.961]
[1746018859555,0.50586317,1766.0,1765.5,5.961]
[1746018859757,0.50586317,1766.0,1765.4,5.961]
[1746018860079,0.50586317,1765.9,1765.4,5.961]
[1746018860588,1.01174037,1765.8,1765.1,1.6091]
[1746018860776,1.2521,1765.7,1765.2,5.961]
[1746018861260,1.01174037,1765.6,1765.1,1.6091]
[1746018861592,0.50586317,1765.5,1765.2,5.961]
[1746018862286,0.5058772,1765.4,1765.2,5.961]
[1746018862590,0.50586317,1765.3,1765.2,5.961]
[1746018862793,0.50586317,1765.3,1765.1,7.85798051]
[1746018862959,0.50586317,1765.3,1765.1,13.81898051]
[1746018863160,0.50586317,1765.3,1765.1,7.5701]
[1746018863493,0.5058772,1765.2,1764.6,5.961]
[1746018863665,0.50586317,1765.1,1764.6,5.961]
[1746018863862,0.50586317,1765.1,1764.6,7.33711805]
[1746018864067,0.50586317,1765.1,1764.8,6.24888051]
[1746018864254,0.50586317,1765.1,1764.9,1.5978]
[1746018864591,0.5058772,1765.0,1764.9,1.5978]
[1746018864812,0.5058772,1765.0,1764.9,1.5714]
[1746018865509,0.5058772,1765.0,1764.7,2.1214]
[1746018865701,0.5058772,1765.7,1764.7,2.1214]
[1746018866009,0.506897,1765.6,1764.7,2.1214]
[1746018866413,1.2521,1765.5,1764.7,1.5714]
[1746018866710,2.2648742,1765.5,1764.9,0.55]
[1746018866906,0.506897,1765.4,1765.2,1.5542]
[1746018867610,0.506897,1765.4,1765.1,12.20988051]
[1746018868112,0.5058772,1765.3,1765.2,0.55]
[1746018868317,0.5058772,1765.3,1765.2,6.39748805]
[1746018868898,0.5058772,1765.3,1764.5,6.59520468]
[1746018868899,1.01260251,1765.3,1764.2,7.5325]
[1746018869099,1.01260251,1765.3,1764.2,13.78138051]
[1746018869414,1.01260251,1765.2,1764.5,6.24888051]
[1746018869580,1.01260251,1765.2,1764.2,13.78138051]
[1746018869775,0.50672531,1765.1,1764.2,13.78138051]
[1746018870377,0.30406983,1765.0,1764.2,7.82038051]
[1746018870572,1.7579772,1764.9,1763.7,22.2212]
[1746018870779,1.7579772,1764.9,1763.9,5.961]
[1746018870990,0.81079514,1764.8,1764.0,5.961]
[1746018871388,0.5058772,1764.7,1764.0,5.961]
[1746018871816,0.50672531,1764.6,1764.0,5.961]
[1746018872168,0.50672531,1764.5,1764.0,5.961]
[1746018872335,0.81079514,1764.5,1764.0,5.961]
[1746018872529,0.50672531,1764.4,1763.9,0.5961]
[1746018872694,1.01260251,1764.4,1764.0,5.962]
[1746018873322,0.30406983,1764.3,1764.0,5.962]
[1746018873518,0.81079514,1764.3,1764.0,5.962]
[1746018873791,1.01260251,1764.2,1764.0,5.962]
[1746018874427,0.5058772,1764.2,1764.1,2.2066]
[1746018874603,1.2521,1764.9,1764.1,3.64834805]
[1746018874804,1.2521,1764.9,1764.3,6.24888051]
[1746018875005,0.50763024,1764.8,1764.3,6.24888051]
[1746018875206,0.50763024,1764.8,1764.5,1.6458]
[1746018875433,0.30456162,1764.7,1764.6,5.962]
[1746018875603,0.81219186,1764.7,1764.6,5.962]
[1746018876010,1.319844,1764.7,1764.6,5.962]
[1746018876954,0.81219186,1764.7,1764.6,5.962]
[1746018877102,0.30456162,1764.7,1764.6,5.962]
[1746018877938,1.31966562,1764.7,1764.6,5.962]
[1746018879347,0.55,1764.6,1763.7,2.0]
[1746018879531,3.0,1764.3,1763.7,2.0]
[1746018879716,0.50755255,1764.2,1763.7,2.0]
[1746018880047,0.81211307,1764.1,1763.7,3.14008265]
[1746018880258,0.81211307,1764.1,1763.8,5.962]
[1746018880610,0.50755145,1764.0,1763.8,5.962]
[1746018881007,1.2521,1764.3,1763.8,5.962]
[1746018881612,0.81025732,1764.2,1763.8,5.962]
[1746018881817,0.50640551,1764.1,1763.9,5.963]
[1746018882234,0.50640443,1764.0,1763.9,5.963]
[1746018882821,0.81025732,1764.0,1763.7,2.0]
[1746018883016,0.81025732,1764.0,1763.8,5.963]
[1746018883435,0.30385289,1764.0,1763.8,5.963]
[1746018883642,1.2521,1764.3,1763.8,5.963]
[1746018883826,1.01243522,1764.2,1763.8,5.963]
[1746018884352,0.50622962,1764.1,1763.8,5.963]
[1746018884768,0.5062056,1764.2,1763.8,5.963]
[1746018885147,0.80996485,1764.1,1763.7,2.0]
[1746018885465,10.50098051,1763.8,1763.7,2.0]
[1746018885623,11.00654529,1763.8,1763.7,2.0]
[1746018885823,15.84544529,1763.8,1763.7,0.03745828]
[1746018886040,16.35165089,1763.8,1763.7,0.03745828]
[1746018886554,17.08086357,1763.8,1763.7,0.03745828]
[1746018886914,17.08086357,1763.8,1763.6,9.40082645]
[1746018886915,8.963,1763.7,1763.6,9.40082645]
[1746018887355,1.74098306,1763.8,1763.6,9.40082645]
[1746018887530,0.80932403,1763.7,1763.6,9.40082645]
[1746018887733,1.31552963,1763.7,1763.6,9.40082645]
[1746018889756,1.31552963,1763.7,1763.6,9.51307223]
[1746018890220,4.31552963,1763.7,1763.6,9.51307223]
[1746018890427,4.31552963,1763.7,1763.6,9.40082645]
[1746018890725,4.31552963,1763.7,1763.6,9.52753714]
[1746018891628,4.31552963,1763.7,1763.6,9.40082645]
[1746018891943,1.31552963,1763.7,1763.6,9.52753714]
[1746018892271,3.65398043,1763.9,1763.6,10.48029085]
[1746018892938,3.65398043,1763.9,1763.7,6.093]
[1746018893472,2.79757876,1763.9,1763.8,2.19436239]
[1746018894470,5.79174039,1764.7,1763.8,2.19436239]
[1746018894721,3.62686501,1764.2,1763.9,1.6469]
[1746018894875,1.96026501,1764.2,1764.1,1.6469]
[1746018895029,4.70578906,1764.7,1764.0,3.55473383]
[1746018895234,4.70578906,1764.7,1763.8,18.932]
[1746018895235,5.79174039,1765.0,1764.4,0.55]
[1746018895542,5.79174039,1765.0,1764.6,0.55]
[1746018896073,5.79174039,1765.0,1764.7,0.00428409]
[1746018896640,5.79174039,1765.0,1764.6,9.33866645]
[1746018896840,5.79174039,1765.0,1764.5,6.093]
[1746018897074,5.79174039,1765.0,1764.5,6.092]
[1746018897736,1.6585,1765.1,1764.5,6.092]
[1746018897941,1.6585,1765.1,1763.9,5.86551503]
[1746018898271,1.6585,1765.1,1764.0,7.7127]
[1746018898501,1.6585,1765.1,1764.1,0.77127]
[1746018898884,1.6585,1765.1,1764.0,7.7127]
[1746018899375,1.6585,1765.1,1764.0,6.092]
[1746018899882,1.6495,1764.8,1764.0,6.092]
[1746018900640,1.6495,1764.8,1763.6,10.35358016]
[1746018900641,1.6495,1764.8,1763.6,9.40082645]
[1746018900962,3.0,1764.9,1763.6,9.40082645]
[1746018901185,1.5861,1764.6,1763.7,8.78866645]
[1746018901371,1.5861,1764.6,1763.8,1.6797806]
[1746018901542,1.5861,1764.6,1763.9,6.091]
[1746018902396,1.5861,1764.6,1763.6,9.40082645]
[1746018902601,1.5861,1764.6,1763.7,6.091]
[1746018903224,1.5861,1764.6,1764.0,0.55]
[1746018903523,1.5808,1764.9,1764.0,0.55]
[1746018903826,1.5808,1764.9,1763.9,1.5659]
[1746018904035,1.5808,1764.9,1763.9,4.43141503]
[1746018904489,3.0,1765.1,1764.0,6.091]
[1746018904490,4.5808,1764.7,1764.0,6.091]
[1746018904686,0.50469621,1764.6,1763.9,2.86551503]
[1746018904931,0.80748747,1764.6,1763.9,8.95651503]
[1746018905136,1.6027,1764.4,1763.6,9.40082645]
[1746018905424,1.6625,1764.2,1763.6,9.40082645]
[1746018905602,0.50475632,1764.1,1763.6,9.40082645]
[1746018905801,1.6625,1764.0,1763.6,9.40082645]
[1746018906039,2.46998747,1764.0,1763.6,9.40082645]
[1746018906241,1.96529126,1764.0,1763.6,9.40082645]
[1746018906638,0.30279126,1764.0,1763.6,9.40082645]
[1746018906838,1.5782,1764.2,1763.6,9.40082645]
[1746018907157,1.5782,1764.2,1763.7,0.94008265]
[1746018907306,0.50473666,1764.1,1763.6,9.40082645]
[1746018907512,1.5785,1764.0,1763.6,9.40082645]
[1746018907706,5.08338731,1764.0,1763.6,9.40082645]
[1746018907940,0.80768637,1763.9,1763.6,9.40082645]
[1746018908650,0.30294971,1763.8,1763.6,9.40082645]
[1746018908854,0.80783702,1763.8,1763.6,9.40082645]
[1746018909012,5.10323584,1763.7,1763.6,9.40082645]
[1746018909412,5.47094766,1763.7,1763.6,9.40082645]
[1746018909725,3.92704766,1763.7,1763.6,5.56823645]
[1746018910044,1.31277286,1763.7,1763.6,5.56823645]
[1746018910224,1.73190427,1763.7,1763.6,5.44982075]
[1746018910411,0.2,1763.2,1761.9,0.005]
[1746018910608,7.69490427,1763.7,1761.9,0.005]
[1746018910609,8.61262862,1762.3,1761.9,0.005]
[1746018910841,0.50488731,1762.2,1761.9,0.005]
[1746018911037,0.50488731,1762.2,1761.8,5.79293589]
[1746018911240,0.50488731,1762.2,1761.8,2.92097045]
[1746018911422,0.30294971,1762.1,1761.8,2.92097045]
[1746018911953,10.10143931,1762.0,1761.8,2.92097045]
[1746018912521,0.50493584,1761.9,1761.8,2.92097045]
[1746018912925,0.80788555,1761.9,1761.8,2.92097045]
[1746018913247,16.2919037,1763.6,1761.8,3.2130675]
[1746018913248,0.29573268,1763.0,1761.8,3.2130675]
[1746018913674,0.2919037,1763.6,1761.9,5.65984074]
[1746018913826,8.78866645,1763.4,1762.0,0.55]
[1746018914029,6.095,1763.3,1762.0,6.095]
[1746018914230,8.78866645,1763.1,1762.0,6.095]
[1746018914466,8.78866645,1763.1,1761.9,1.6362]
[1746018914638,0.50273875,1763.0,1762.0,6.096]
[1746018914844,0.50273875,1763.0,1762.2,1.504]
[1746018915445,2.48198255,1763.4,1762.3,6.272]
[1746018915643,3.85276283,1763.0,1762.3,6.272]
[1746018915861,3.85276283,1763.0,1762.2,1.504]
[1746018915862,10.12476283,1763.0,1761.4,2.80535622]
[1746018916032,8.78866645,1762.5,1761.3,2.84490317]
[1746018916226,3.0,1762.4,1761.3,2.84490317]
[1746018916579,3.50149071,1762.4,1761.3,2.84490317]
[1746018916878,0.50149071,1762.4,1761.6,13.25051517]
[1746018917034,0.58949398,1762.4,1762.0,0.55]
[1746018917227,3.85276283,1763.0,1762.2,0.55]
[1746018917427,3.85276283,1763.0,1762.5,0.55]
[1746018917967,3.85276283,1763.0,1762.9,0.55]
[1746018918169,1.92266915,1763.0,1762.8,1.5548]
[1746018918487,1.92266915,1763.0,1762.6,18.744]
[1746018918488,15.14755154,1763.6,1763.1,1.5548]
[1746018918648,15.14755154,1763.6,1763.2,6.273]
[1746018918833,3.84674115,1763.3,1763.2,7.02511684]
[1746018919372,3.84674115,1763.3,1763.2,6.273]
[1746018920637,3.84674115,1763.3,1763.2,6.272]
[1746018921364,7.96364304,1764.2,1763.2,6.272]
[1746018921365,11.78866645,1764.4,1763.2,6.272]
[1746018921784,11.78866645,1764.4,1762.8,1.6416]
[1746018921984,3.0,1764.6,1763.0,4.5689]
[1746018922155,3.0,1764.6,1763.1,0.45689]
[1746018922357,8.78866645,1764.5,1763.1,0.45689]
[1746018922691,8.78866645,1764.5,1763.2,6.272]
[1746018922995,6.69364031,1764.7,1763.4,1.5689]
[1746018922996,6.273,1764.7,1763.4,1.5689]
[1746018923291,6.273,1764.7,1763.5,6.272]
[1746018923496,15.06066645,1765.1,1763.6,0.05669221]
[1746018923702,15.06066645,1765.1,1763.6,0.55]
[1746018923995,33.79866645,1765.7,1763.9,1.5689]
[1746018924150,33.79866645,1765.7,1764.0,6.32767223]
[1746018924151,6.21267873,1765.5,1764.0,6.32767223]
[1746018924468,5.79174039,1765.5,1764.1,2.17557231]
[1746018924666,5.79174039,1765.5,1764.1,3.55]
[1746018924846,5.79174039,1765.5,1764.7,3.0]
[1746018925053,5.79174039,1765.5,1764.8,7.8356]
[1746018925565,5.79174039,1765.5,1764.9,11.84531056]
[1746018925872,5.79174039,1765.5,1765.0,1.6252]
[1746018926083,5.79174039,1765.5,1764.9,11.78866645]
[1746018926084,5.79174039,1765.5,1765.3,4.6252]
[1746018926415,6.87769171,1765.7,1765.4,6.271]
[1746018926562,6.87769171,1765.7,1765.5,7.8022]
[1746018927199,6.87769171,1765.7,1765.6,6.269]
[1746018927687,9.01343739,1765.8,1765.6,25.0]
[1746018927861,12.9756489,1766.0,1765.7,1.569]
[1746018928353,12.9756489,1766.0,1765.8,6.269]
[1746018928561,12.9756489,1766.0,1765.9,6.269]
[1746018928764,12.9756489,1766.0,1765.8,6.269]
[1746018929463,1.5098,1767.1,1765.8,15.05766645]
[1746018929704,1.5098,1767.1,1766.0,1.5023]
[1746018929871,7.30080536,1767.6,1766.1,8.84526878]
[1746018930072,4.633,1767.5,1766.2,1.5004]
[1746018930278,1.633,1767.5,1766.3,6.266]
[1746018930484,1.633,1767.5,1766.4,0.05659842]
[1746018930808,1.633,1767.5,1766.5,1.6351]
[1746018930971,0.5027086,1767.4,1766.5,1.69168883]
[1746018931678,6.87168493,1767.6,1766.5,1.6351]
[1746018931878,6.87168493,1767.6,1766.6,6.266]
[1746018932081,6.87168493,1767.6,1766.6,7.05611]
[1746018932262,6.87168493,1767.6,1766.7,1.5926]
[1746018932896,6.87168493,1767.6,1766.8,6.264]
[1746018933199,3.0,1767.5,1766.9,6.264]
[1746018933578,6.87168493,1767.6,1766.9,6.264]
[1746018934202,1.5509,1767.8,1766.9,6.264]
[1746018934566,0.55,1767.7,1766.9,6.264]
[1746018934765,1.5335,1767.6,1766.9,6.264]
[1746018935895,4.541,1767.9,1767.0,1.5354]
[1746018936174,1.541,1767.9,1767.1,6.262]
[1746018936370,0.4145004,1768.4,1767.2,0.05658046]
[1746018936588,1.541,1768.2,1767.1,7.09831053]
[1746018936805,1.541,1768.2,1767.2,1.6559]
[1746018936966,1.541,1768.2,1767.2,7.9179]
[1746018937399,0.4145004,1768.4,1767.4,1.6559]
[1746018937672,0.4145004,1768.4,1767.6,1.6365]
[1746018938020,0.4145004,1768.4,1767.7,6.262]
[1746018938188,0.4145004,1768.4,1767.8,6.262]
[1746018939698,0.55,1768.3,1767.8,6.262]
[1746018940530,0.55,1768.1,1767.3,24.971]
[1746018940824,0.55,1768.1,1767.3,18.711]
[1746018941116,1.5502,1768.2,1767.3,18.711]
[1746018941268,1.5502,1768.2,1767.4,1.6628]
[1746018942221,1.5502,1768.2,1767.3,18.711]
[1746018942576,0.55,1768.1,1767.3,18.711]
[1746018942920,0.55,1768.1,1767.1,1.6431]
[1746018942921,1.666,1767.8,1767.1,6.259]
[1746018943085,1.666,1767.8,1765.7,5.21601101]
[1746018943086,9.33866645,1767.5,1766.4,1.5321]
[1746018943284,0.55,1767.2,1766.2,6.259]
[1746018943527,1.6292,1767.3,1766.3,6.259]
[1746018944408,0.55,1767.2,1766.3,6.259]
[1746018945224,0.55,1767.0,1766.3,6.259]
[1746018945716,1.5789,1767.1,1766.3,6.259]
[1746018946521,0.49482017,1767.0,1766.3,6.259]
[1746018946813,2.0663,1766.9,1766.3,6.259]
[1746018947120,0.49482017,1766.8,1766.3,6.259]
[1746018947353,1.5163,1766.6,1765.8,6.396]
[1746018947512,0.55,1766.5,1765.8,6.396]
[1746018947719,0.55,1766.5,1765.7,23.91801101]
[1746018947720,1.5163,1766.4,1765.7,5.21601101]
[1746018948191,0.49482017,1766.3,1765.7,5.21601101]
[1746018948389,0.98964098,1766.3,1765.7,5.21601101]
[1746018948704,1.6557,1766.1,1765.7,5.21601101]
[1746018948904,2.2057,1766.1,1765.7,5.21601101]
[1746018949108,2.2057,1766.1,1765.5,6.397]
[1746018949417,2.2057,1766.1,1765.1,6.397]
[1746018949418,0.49482017,1766.0,1765.1,6.397]
[1746018949573,0.98964098,1766.0,1765.1,6.397]
[1746018950182,0.49482017,1765.9,1765.1,6.45363609]
[1746018950385,0.49482017,1765.9,1765.2,1.6483]
[1746018951793,0.49971061,1765.8,1765.2,1.6483]
[1746018951998,0.49971061,1765.8,1765.2,8.0463]
[1746018952187,0.49482017,1765.7,1765.2,8.0463]
[1746018953282,0.49971061,1765.6,1765.2,8.0463]
[1746018953525,0.49971061,1765.6,1765.3,6.398]
[1746018953895,0.49482017,1765.5,1765.3,7.20263]
[1746018954324,1.5326,1766.6,1765.4,1.6211]
[1746018954631,1.5326,1766.6,1765.5,0.05661967]
[1746018954856,0.30178171,1766.5,1765.6,1.5327]
[1746018955939,0.80475435,1766.4,1765.6,1.58931821]
[1746018956094,0.80475435,1766.4,1765.7,6.398]
[1746018956295,0.80475435,1766.4,1765.8,0.6398]
[1746018956605,0.80475435,1766.4,1765.7,6.398]
[1746018956801,0.80475435,1766.3,1765.7,6.398]
[1746018957145,0.80475435,1766.3,1765.8,1.56641843]
[1746018957691,0.80475435,1766.3,1766.0,1.5098]
[1746018957891,0.80475435,1766.3,1766.0,1.56640541]
[1746018958236,2.23523718,1767.8,1766.2,1.6223]
[1746018958537,1.5104,1767.6,1766.4,4.6223]
[1746018958698,1.5104,1767.6,1766.6,1.608]
[1746018959033,0.30224678,1767.5,1766.7,1.608]
[1746018959332,0.80599709,1767.5,1766.8,6.398]
[1746018959908,0.80599709,1767.5,1766.9,1.6028]
[1746018960125,0.80599709,1767.4,1766.9,1.6028]
[1746018960308,0.80599709,1767.4,1766.9,2.40288]
[1746018961404,0.50375031,1767.3,1766.9,2.40288]
[1746018961594,0.50375031,1767.3,1767.0,1.564]
[1746018962520,0.50375031,1767.2,1767.0,1.564]
[1746018963229,0.50375031,1767.2,1767.1,6.396]
[1746018964919,1.5039,1768.2,1767.2,1.6404]
[1746018965119,0.30253934,1768.1,1767.2,1.69696606]
[1746018965311,0.30253934,1768.1,1767.2,1.6404]
[1746018965824,0.30253934,1768.1,1767.3,6.45156959]
[1746018966147,0.80654364,1768.0,1767.3,6.45156959]
[1746018966299,0.80654364,1768.0,1767.4,2.16895696]
[1746018966642,0.80654364,1768.0,1767.5,1.58035835]
[1746018966837,0.5040043,1767.9,1767.5,1.58035835]
[1746018967143,1.00783973,1767.9,1767.5,1.58035835]
[1746018967527,0.5040043,1767.9,1767.5,1.58035835]
[1746018967713,0.5040043,1767.9,1767.5,2.15790988]
[1746018967917,0.4145004,1768.4,1767.5,2.15790988]
[1746018968250,0.4145004,1768.4,1767.6,1.5781]
[1746018968700,0.50348428,1768.3,1767.6,16.0781]
[1746018968901,1.00695466,1768.3,1767.6,1.5781]
[1746018969345,0.50348428,1768.2,1767.8,1.5353]
[1746018969639,0.50348428,1768.2,1768.0,1.5353]
[1746018969805,0.50348428,1768.2,1768.0,1.59184656]
[1746018970023,0.50348428,1768.2,1768.0,1.5353]
[1746018971172,0.50348428,1768.3,1768.0,1.5353]
[1746018971539,0.4145004,1768.4,1768.1,6.393]
[1746018971737,0.4145004,1768.4,1768.1,7.18583]
[1746018972553,0.4145004,1768.4,1768.2,1.6421]
[1746018973164,1.6189,1769.5,1768.4,4.6421]
[1746018973474,0.30181528,1769.4,1768.4,1.6421]
[1746018973645,0.80434428,1769.4,1768.4,1.6421]
[1746018973959,0.80434428,1769.4,1768.4,16.1421]
[1746018974163,0.80434428,1769.3,1768.5,1.67073755]
[1746018974340,1.30704822,1769.3,1768.6,6.392]
[1746018974543,0.502529,1769.2,1768.6,6.392]
[1746018975077,0.502529,1769.1,1768.6,6.392]
[1746018975576,1.00523294,1769.0,1768.6,6.392]
[1746018975949,1.00523294,1769.0,1768.7,1.5061]
[1746018976147,0.50270394,1769.0,1768.7,1.5061]
[1746018976668,1.6189,1769.5,1768.7,1.5061]
[1746018977169,0.50167448,1769.4,1768.8,6.155]
[1746018977794,0.50146576,1769.3,1768.8,6.155]
[1746018977976,0.50146576,1769.3,1768.8,6.92111]
[1746018978176,0.50146576,1769.3,1768.8,6.155]
[1746018978598,0.50146576,1769.2,1768.8,6.154]
[1746018978974,1.6189,1769.5,1768.8,6.154]
[1746018979472,0.50162271,1769.4,1768.8,6.154]
[1746018979888,0.50162271,1769.3,1768.8,6.154]
[1746018980095,0.50162271,1769.3,1768.8,6.7694]
[1746018980291,0.50162271,1769.4,1768.8,6.7694]
[1746018980891,0.50162271,1769.4,1768.9,1.5432]
[1746018981701,0.50162271,1769.4,1769.0,6.153]
[1746018982740,0.50162271,1769.7,1769.0,6.153]
[1746018982910,0.50162271,1769.7,1769.0,6.92262]
[1746018983105,0.50162271,1769.7,1769.1,0.05651281]
[1746018983308,0.50162271,1769.7,1769.2,1.5812]
[1746018983527,0.50162271,1770.0,1769.3,0.05649912]
[1746018983836,0.50162271,1770.0,1769.2,1.63769716]
[1746018983993,0.50162271,1770.0,1769.2,1.5812]
[1746018984193,0.30214011,1769.9,1769.2,1.5812]
[1746018984633,0.50388015,1769.8,1769.2,1.5812]
[1746018984835,1.00550286,1769.8,1769.2,1.5812]
[1746018984995,1.00550286,1769.8,1769.5,0.55]
[1746018985196,1.00550286,1769.8,1769.6,6.153]
[1746018985433,0.50388015,1769.8,1769.6,6.8233]
[1746018985737,0.4145004,1770.2,1769.7,1.6]
[1746018985944,0.50430515,1770.1,1769.7,1.6]
[1746018986640,0.4145004,1770.2,1769.8,1.6602]
[1746018986800,0.4145004,1770.2,1769.8,1.716682]
[1746018987146,0.4145004,1770.2,1769.8,1.6602]
[1746018987460,0.4145004,1770.2,1769.8,6.151]
[1746018990036,0.8086333,1769.8,1769.6,6.151]
[1746018990401,1.86147957,1769.7,1768.8,2.1905]
[1746018990600,1.86147957,1769.7,1768.9,6.151]
[1746018990601,5.36744049,1769.7,1768.9,6.151]
[1746018990806,5.36744049,1769.7,1768.8,1.5751]
[1746018991124,5.36744049,1769.7,1768.9,6.151]
[1746018991313,0.50596092,1769.6,1768.9,6.151]
[1746018991510,0.80904049,1769.6,1768.9,6.151]
[1746018991923,0.80904049,1769.6,1769.0,0.05651387]
[1746018992121,0.80904049,1769.6,1769.1,1.5497]
[1746018992505,0.50596092,1769.5,1769.1,1.5497]
[1746018993012,0.30307957,1769.4,1769.2,6.151]
[1746018993846,0.30307957,1769.4,1769.0,6.151]
[1746018994050,0.50596092,1769.3,1768.9,6.151]
[1746018994645,0.50596092,1769.3,1768.7,1.5045]
[1746018994844,0.50596092,1769.3,1768.7,7.6555]
[1746018995016,0.30307957,1769.2,1768.7,7.6555]
[1746018995702,2.1432,1769.6,1768.7,8.42105]
[1746018995703,0.80904049,1769.1,1768.7,8.42105]
[1746018996507,0.30307957,1769.0,1768.7,8.42105]
[1746018996919,0.50596092,1768.9,1768.7,7.6555]
[1746018997608,0.30307957,1768.8,1768.7,7.6555]
[1746018998104,0.80904049,1768.8,1768.7,7.71202162]
[1746018998306,0.80904049,1768.8,1768.7,7.6555]
[1746018998509,0.80904049,1768.8,1768.6,6.151]
[1746018998918,0.81338296,1768.7,1768.6,6.151]
[1746018999326,1.31934388,1768.7,1768.6,6.151]
[1746018999518,1.31934388,1768.7,1768.6,6.7661]
[1746019000031,0.98950791,1768.7,1768.6,11.9091]
[1746019000249,1.6071,1769.6,1768.8,1.5064]
[1746019000452,1.6071,1769.6,1768.8,1.56291252]
[1746019000617,1.6071,1769.6,1768.8,1.5064]
[1746019000817,1.6071,1769.6,1768.8,1.96269125]
[1746019001425,1.6071,1769.6,1768.9,0.05651635]
[1746019001744,1.6071,1769.6,1768.8,1.96269125]
[1746019001745,1.6071,1769.6,1768.8,1.5064]
[1746019002545,2.1424,1769.5,1768.8,0.05652178]
[1746019002735,2.1424,1769.5,1768.7,0.05652753]
[1746019003051,1.5924,1769.5,1768.7,2.36619028]
[1746019003413,1.5924,1769.5,1768.7,2.30966275]
[1746019003927,1.5924,1769.5,1768.8,0.05651632]
[1746019004125,1.5127,1770.1,1769.0,1.5328]
[1746019004330,1.5127,1770.1,1769.1,6.151]
[1746019004531,1.5127,1770.1,1769.2,0.6151]
[1746019005050,0.4145004,1770.2,1769.5,1.5328]
[1746019005262,0.4145004,1770.2,1769.6,6.151]